bitfinex-derivatives/quotes_SOLF0:USTF0_20241212
["timestamp","ask_amount","ask_price","bid_price","bid_amount"]
[1734029128723,2.22,231.68,231.61,123.52832494]
[1734029129021,2.22,231.68,231.61,72.05678101]
[1734029129225,2.22,231.68,231.62,123.52402157]
[1734029129424,7.32520752,231.68,231.6,72.05678101]
[1734029129720,2.1577,231.63,231.59,72.05678101]
[1734029130217,2.1577,231.63,231.6,123.51717983]
[1734029130418,2.1577,231.63,231.59,72.05678101]
[1734029130815,7.32520752,231.68,231.59,72.05678101]
[1734029130816,2.1575,231.65,231.59,74.21478101]
[1734029131022,7.32520752,231.68,231.61,72.05678101]
[1734029131226,7.32520752,231.68,231.61,24.018927]
[1734029131425,7.32520752,231.68,231.6,72.05678101]
[1734029131626,2.1576,231.63,231.6,72.05678101]
[1734029131826,2.1576,231.63,231.59,72.05678101]
[1734029132017,2.1576,231.63,231.58,4.8809]
[1734029132018,2.1576,231.63,231.6,123.50587942]
[1734029132224,7.32520752,231.68,231.6,74.21468101]
[1734029132922,2.1575,231.64,231.6,74.21468101]
[1734029133122,2.22,231.68,231.61,47.40164997]
[1734029133418,2.22,231.68,231.61,72.05678101]
[1734029133925,2.1573,231.66,231.61,72.05678101]
[1734029134326,2.1573,231.66,231.62,47.40008651]
[1734029134526,2.1573,231.66,231.62,24.018927]
[1734029134824,2.1572,231.68,231.62,72.05678101]
[1734029135029,2.2,231.69,231.62,72.05678101]
[1734029135420,2.2,231.69,231.63,47.40059316]
[1734029135624,2.1573,231.67,231.63,24.018927]
[1734029136519,2.1573,231.66,231.63,24.018927]
[1734029136718,5.23604353,231.68,231.61,72.05678101]
[1734029137024,2.1577,231.62,231.6,24.018927]
[1734029137722,2.2,231.64,231.59,72.05678101]
[1734029137919,11.8122395,231.63,231.55,18.01419525]
[1734029138116,11.8122395,231.63,231.56,47.40124511]
[1734029138318,2.1582,231.57,231.56,24.018927]
[1734029138519,2.1582,231.57,231.55,24.018927]
[1734029138717,2.1582,231.57,231.54,72.05678101]
[1734029138920,2.2,231.58,231.55,47.4006395]
[1734029139125,2.2,231.62,231.57,6.00473175]
[1734029139320,2.2,231.62,231.58,47.3906474]
[1734029139521,2.2,231.62,231.58,24.018927]
[1734029139924,2.2,231.62,231.59,47.39005665]
[1734029140125,2.2,231.62,231.58,24.018927]
[1734029140325,2.2,231.62,231.59,47.38596832]
[1734029140522,2.2,231.62,231.58,24.018927]
[1734029140728,2.2,231.62,231.57,24.018927]
[1734029140929,2.2,231.62,231.56,24.018927]
[1734029141522,2.2,231.62,231.57,47.38469103]
[1734029141725,2.1578,231.61,231.57,24.018927]
[1734029142025,2.2,231.62,231.56,24.018927]
[1734029142224,2.1582,231.57,231.54,24.018927]
[1734029143417,2.1581,231.59,231.54,24.018927]
[1734029143619,11.8122395,231.66,231.56,24.018927]
[1734029143819,2.2,231.65,231.56,24.018927]
[1734029144022,2.1579,231.6,231.56,24.018927]
[1734029144229,2.2,231.59,231.56,24.018927]
[1734029145030,2.2,231.59,231.57,47.3941511]
[1734029145231,2.2,231.59,231.57,72.05678101]
[1734029145431,2.2,231.62,231.57,72.05678101]
[1734029145731,2.2,231.62,231.59,24.018927]
[1734029146230,2.1574,231.66,231.6,125.68380007]
[1734029146427,4.3574,231.66,231.61,123.52430387]
[1734029146729,4.3574,231.66,231.61,72.05678101]
[1734029147320,4.3574,231.66,231.62,123.54833731]
[1734029147529,4.3574,231.66,231.62,72.05678101]
[1734029147729,4.3574,231.66,231.61,72.05678101]
[1734029148126,4.3574,231.66,231.61,144.11356202]
[1734029148630,4.3574,231.66,231.62,123.55589301]
[1734029148931,4.3574,231.66,231.62,72.05678101]
[1734029149320,4.3574,231.66,231.61,144.11356202]
[1734029149527,4.3574,231.66,231.62,123.56359301]
[1734029149729,5.23604353,231.68,231.62,72.05678101]
[1734029149927,2.2,231.67,231.61,72.05678101]
[1734029150125,4.3573,231.67,231.62,123.56237286]
[1734029150329,2.2,231.67,231.63,123.56899303]
[1734029150528,2.2,231.67,231.63,144.11356202]
[1734029150731,2.2,231.67,231.63,72.05678101]
[1734029151431,83.07620794,231.75,231.65,72.05678101]
[1734029151630,83.07620794,231.75,231.67,144.11356202]
[1734029151631,2.2,231.74,231.67,144.11356202]
[1734029152327,2.2,231.74,231.68,6.00473175]
[1734029152534,2.2,231.74,231.68,72.05678101]
[1734029153429,2.2,231.74,231.67,144.11356202]
[1734029153731,2.1569,231.71,231.67,144.11356202]
[1734029154632,5.21678664,231.73,231.68,123.5714551]
[1734029154833,5.21678664,231.73,231.67,144.11356202]
[1734029155338,2.1569,231.71,231.67,144.11356202]
[1734029155531,5.21678664,231.73,231.67,144.11356202]
[1734029156232,11.8122395,231.72,231.66,72.05678101]
[1734029156435,11.8122395,231.69,231.63,144.11356202]
[1734029156738,11.8122395,231.69,231.61,119.51791906]
[1734029156739,2.1577,231.62,231.61,72.05678101]
[1734029156938,2.1577,231.62,231.6,146.86446202]
[1734029157241,2.1577,231.62,231.59,72.05678101]
[1734029157434,14.0122395,231.63,231.57,72.05678101]
[1734029157640,2.2,231.63,231.56,54.04258576]
[1734029157838,2.2,231.63,231.58,24.018927]
[1734029158040,2.2,231.63,231.58,144.11356202]
[1734029158240,2.2,231.63,231.58,72.05678101]
[1734029158535,4.3577,231.63,231.59,123.5971445]
[1734029158742,4.3577,231.63,231.59,72.05678101]
[1734029159134,2.2,231.63,231.57,72.05678101]
[1734029159337,14.0122395,231.63,231.57,18.01419525]
[1734029159534,14.0122395,231.63,231.56,72.05678101]
[1734029160038,14.0122395,231.63,231.55,72.05678101]
[1734029160643,11.8122395,231.6,231.54,72.05678101]
[1734029160943,2.1583,231.56,231.54,72.05678101]
[1734029161144,4.3383,231.56,231.54,72.05678101]
[1734029161936,2.18,231.56,231.52,72.05678101]
[1734029162343,2.18,231.56,231.53,123.57170571]
[1734029162541,2.18,231.56,231.52,72.05678101]
[1734029162845,2.18,231.56,231.51,72.05678101]
[1734029163237,2.1584,231.55,231.52,47.42846525]
[1734029163542,2.1584,231.55,231.52,72.05678101]
[1734029164240,2.1584,231.54,231.52,72.05678101]
[1734029164648,2.18,231.56,231.5,72.05678101]
[1734029164846,2.18,231.56,231.48,72.05678101]
[1734029165248,2.18,231.56,231.49,123.55068167]
[1734029165543,2.18,231.56,231.48,72.05678101]
[1734029165949,2.18,231.56,231.49,123.52497243]
[1734029166153,11.8122395,231.54,231.48,72.05678101]
[1734029166340,11.8122395,231.51,231.46,72.05678101]
[1734029166543,2.1591,231.47,231.46,48.03785401]
[1734029166745,2.18,231.47,231.43,24.018927]
[1734029166944,2.18,231.47,231.43,18.01419525]
[1734029167139,2.1595,231.43,231.4,73.37588101]
[1734029167343,2.18,231.47,231.41,10.67727434]
[1734029167540,2.18,231.47,231.4,7.32383175]
[1734029168042,2.18,231.47,231.4,25.338027]
[1734029168249,2.18,231.47,231.4,1.3191]
[1734029168452,11.8122395,231.45,231.38,6.00473175]
[1734029168749,11.8122395,231.45,231.39,4.66842246]
[1734029168940,11.8122395,231.45,231.38,24.018927]
[1734029169142,11.8122395,231.45,231.39,4.66841531]
[1734029169351,2.1595,231.43,231.37,8.16473175]
[1734029169549,2.1595,231.43,231.38,4.66441859]
[1734029169550,2.18,231.42,231.38,4.66441859]
[1734029169751,2.18,231.42,231.37,8.16473175]
[1734029170046,2.18,231.42,231.38,4.66442186]
[1734029170353,2.18,231.42,231.38,6.00473175]
[1734029170549,2.18,231.42,231.39,4.66119416]
[1734029170851,2.18,231.42,231.38,6.00473175]
[1734029171151,2.18,231.42,231.37,8.16473175]
[1734029171448,2.18,231.42,231.38,10.66572434]
[1734029171648,2.18,231.42,231.38,6.00473175]
[1734029172156,2.18,231.42,231.37,26.178927]
[1734029172351,5.10657721,231.47,231.38,4.65616375]
[1734029172546,2.18,231.49,231.39,53.10648486]
[1734029172746,2.18,231.49,231.4,1.4095]
[1734029173147,2.18,231.49,231.41,2.1596]
[1734029173448,2.18,231.49,231.42,47.10906684]
[1734029173751,2.18,231.49,231.44,2.1593]
[1734029174054,2.18,231.49,231.43,47.10844219]
[1734029174055,2.18,231.49,231.43,5.95893531]
[1734029174250,2.18,231.49,231.44,4.65366428]
[1734029174549,9.58857555,231.49,231.43,23.83544878]
[1734029174745,9.58857555,231.49,231.44,4.65364299]
[1734029174945,7.42967555,231.49,231.43,23.83544878]
[1734029175148,7.42967555,231.49,231.44,4.65364017]
[1734029175348,2.18,231.49,231.43,23.83544878]
[1734029175552,3.1585,231.53,231.44,4.65293685]
[1734029175757,11.8122395,231.56,231.46,5.95893531]
[1734029176054,2.18,231.55,231.46,5.95893531]
[1734029176255,2.18,231.55,231.47,2.159]
[1734029176654,5.24397276,231.53,231.47,2.159]
[1734029176852,2.18,231.54,231.49,2.1589]
[1734029178755,2.18,231.57,231.49,5.95893531]
[1734029178959,2.18,231.57,231.5,48.46140245]
[1734029179161,2.18,231.57,231.51,4.65137346]
[1734029179360,2.1577,231.62,231.56,2.1582]
[1734029179965,2.1578,231.61,231.55,2.1583]
[1734029180859,11.8122395,231.56,231.5,49.04098248]
[1734029181062,2.18,231.55,231.49,5.95893531]
[1734029181263,2.18,231.55,231.45,74.23966028]
[1734029181264,2.1589,231.5,231.45,8.69213531]
[1734029181467,2.1589,231.5,231.46,4.65200384]
[1734029181665,11.8122395,231.53,231.47,4.65198648]
[1734029181858,11.8122395,231.53,231.46,2.1592]
[1734029181859,2.1587,231.52,231.46,2.1592]
[1734029182058,11.8122395,231.53,231.45,8.69213531]
[1734029182264,11.8122395,231.53,231.46,4.65239822]
[1734029182467,11.8122395,231.53,231.45,26.56864878]
[1734029182967,11.8122395,231.53,231.46,4.65234383]
[1734029183268,2.1587,231.51,231.46,2.1592]
[1734029183766,2.1587,231.51,231.45,2.7332]
[1734029184460,2.1587,231.51,231.46,4.65367584]
[1734029184768,2.1586,231.52,231.47,4.65345364]
[1734029185062,2.18,231.55,231.45,10.85133531]
[1734029185260,2.18,231.55,231.46,4.65377555]
[1734029185458,2.1587,231.51,231.46,2.1592]
[1734029185662,2.1587,231.51,231.45,8.69213531]
[1734029185967,2.1587,231.51,231.45,4.8925]
[1734029186466,2.1587,231.51,231.46,4.65586989]
[1734029186664,2.1587,231.51,231.45,10.85143531]
[1734029186859,11.8122395,231.53,231.46,4.65577371]
[1734029187064,11.8122395,231.53,231.45,2.7332]
[1734029187265,11.8122395,231.53,231.46,4.65860778]
[1734029187564,11.8122395,231.53,231.45,8.69213531]
[1734029187758,2.1588,231.51,231.46,4.6586136]
[1734029187964,2.18,231.5,231.45,8.69213531]
[1734029188168,2.18,231.5,231.46,10.62017973]
[1734029188465,2.18,231.5,231.46,5.95893531]
[1734029188666,4.3389,231.5,231.46,5.95893531]
[1734029189170,4.3389,231.5,231.47,4.66503735]
[1734029189470,2.159,231.48,231.46,23.83544878]
[1734029189661,2.159,231.48,231.47,4.66571335]
[1734029190167,2.159,231.48,231.47,10.62464866]
[1734029190569,2.1589,231.49,231.47,10.62464866]
[1734029190775,2.1589,231.49,231.47,5.95893531]
[1734029191169,2.1589,231.49,231.47,23.83544878]
[1734029191366,2.18,231.5,231.47,23.83544878]
[1734029191568,2.18,231.5,231.48,47.21380179]
[1734029191764,5.24692795,231.52,231.48,71.50693126]
[1734029192065,2.1581,231.58,231.53,2.1585]
[1734029192265,2.18,231.59,231.53,71.82006568]
[1734029192573,2.18,231.65,231.55,71.82006568]
[1734029192866,2.18,231.64,231.55,71.82006568]
[1734029193067,2.18,231.64,231.56,123.26558411]
[1734029193277,2.18,231.64,231.57,123.28209428]
[1734029193568,2.18,231.64,231.57,71.82006568]
[1734029193971,5.07632717,231.62,231.57,71.82006568]
[1734029194362,2.1577,231.62,231.57,5.98492693]
[1734029194760,2.18,231.64,231.56,23.93970772]
[1734029195163,2.1578,231.61,231.57,47.32729114]
[1734029195369,2.1578,231.61,231.57,5.98492693]
[1734029195872,2.1578,231.61,231.57,8.14302693]
[1734029196573,2.1578,231.61,231.57,5.98492693]
[1734029196769,2.158,231.59,231.57,5.98492693]
[1734029196970,11.8122395,231.63,231.56,5.98492693]
[1734029197271,2.158,231.59,231.54,5.98492693]
[1734029197468,2.158,231.59,231.55,4.67578622]
[1734029197675,2.158,231.59,231.54,5.98492693]
[1734029197863,2.18,231.59,231.54,5.98492693]
[1734029198368,2.1583,231.56,231.53,23.93970772]
[1734029198565,2.1583,231.56,231.54,4.67547911]
[1734029198864,2.1583,231.56,231.53,23.93970772]
[1734029199070,4.338,231.59,231.54,4.6754737]
[1734029199270,2.18,231.6,231.55,10.6602398]
[1734029199469,2.18,231.6,231.56,10.6602398]
[1734029199673,2.18,231.6,231.56,5.98492693]
[1734029200269,2.18,231.6,231.55,23.93970772]
[1734029200472,2.18,231.6,231.56,4.6738115]
[1734029200674,13.9922395,231.6,231.56,5.98492693]
[1734029200869,13.9922395,231.6,231.53,23.93970772]
[1734029201068,2.1583,231.55,231.51,23.93970772]
[1734029201269,4.3383,231.55,231.52,4.67436378]
[1734029201469,4.3383,231.55,231.52,23.93970772]
[1734029201673,4.3383,231.55,231.51,23.93970772]
[1734029202374,2.18,231.55,231.51,23.93970772]
[1734029202666,2.18,231.55,231.5,71.82006568]
[1734029202870,2.1586,231.53,231.49,25.37770772]
[1734029203373,2.1586,231.53,231.49,1.438]
[1734029203573,2.18,231.55,231.49,1.438]
[1734029203574,2.18,231.55,231.49,73.25806568]
[1734029203872,2.18,231.55,231.5,123.26811714]
[1734029204070,2.18,231.55,231.5,71.82006568]
[1734029204369,2.18,231.55,231.52,71.82006568]
[1734029204867,2.18,231.59,231.54,71.82006568]
[1734029205067,2.18,231.59,231.56,71.86503256]
[1734029205267,5.05996492,231.63,231.56,71.86503256]
[1734029205468,7.23996492,231.63,231.57,123.34273472]
[1734029205669,9.39766492,231.63,231.58,2.158]
[1734029206274,9.39766492,231.63,231.58,74.02303256]
[1734029206772,2.1577,231.62,231.58,74.02303256]
[1734029207173,2.1577,231.62,231.59,123.35608464]
[1734029207371,7.21756492,231.63,231.61,71.86503256]
[1734029207579,5.05996492,231.63,231.59,143.37149284]
[1734029207767,5.05996492,231.63,231.6,123.37064312]
[1734029207967,5.05996492,231.63,231.6,71.86503256]
[1734029208178,7.21756492,231.63,231.59,143.37149284]
[1734029208476,2.18,231.64,231.6,2.1578]
[1734029208672,13.2163395,231.69,231.6,71.86503256]
[1734029208975,13.2163395,231.69,231.59,71.50646028]
[1734029208976,2.18,231.68,231.62,71.86503256]
[1734029209171,20.4352395,231.84,231.62,71.86503256]
[1734029209172,2.18,231.67,231.62,71.86503256]
[1734029209577,2.18,231.67,231.62,23.95501085]
[1734029209973,2.18,231.67,231.64,23.95501085]
[1734029210380,2.18,231.67,231.63,23.95501085]
[1734029210678,2.18,231.67,231.63,5.98875271]
[1734029210880,2.1573,231.66,231.63,5.98875271]
[1734029211076,11.8122395,231.72,231.63,5.98875271]
[1734029211269,2.18,231.71,231.64,5.98875271]
[1734029211474,2.157,231.7,231.65,2.1574]
[1734029212273,2.157,231.7,231.64,8.14625271]
[1734029212469,2.157,231.7,231.65,4.67398742]
[1734029212777,2.157,231.7,231.64,23.95501085]
[1734029212977,2.157,231.7,231.65,4.67396578]
[1734029213177,2.157,231.7,231.64,23.95501085]
[1734029213381,2.157,231.7,231.65,4.67187044]
[1734029213678,2.157,231.7,231.65,2.1574]
[1734029213881,7.3697177,231.71,231.64,23.95501085]
[1734029214076,7.3697177,231.71,231.62,5.98875271]
[1734029214381,2.1576,231.64,231.61,23.95501085]
[1734029214577,2.1576,231.64,231.62,4.67091101]
[1734029214777,2.1576,231.64,231.61,5.98875271]
[1734029215081,2.18,231.66,231.61,5.98875271]
[1734029215769,2.1574,231.65,231.6,26.11291085]
[1734029215975,2.1574,231.65,231.61,4.67014469]
[1734029216175,2.1574,231.65,231.6,26.11291085]
[1734029216375,2.1574,231.65,231.6,8.14665271]
[1734029216580,2.1574,231.65,231.61,10.65853543]
[1734029216784,2.1574,231.65,231.62,4.66978177]
[1734029217080,2.1574,231.65,231.61,5.98875271]
[1734029217271,2.1574,231.65,231.62,4.66977581]
[1734029217477,2.1574,231.65,231.61,5.98875271]
[1734029218375,2.1574,231.65,231.62,4.66961769]
[1734029218576,2.1575,231.64,231.61,5.98875271]
[1734029218775,2.18,231.66,231.61,5.98875271]
[1734029218976,2.18,231.66,231.6,17.96625814]
[1734029219273,2.1575,231.64,231.6,5.98875271]
[1734029219472,2.18,231.66,231.6,5.98875271]
[1734029219871,2.18,231.66,231.61,4.67046826]
[1734029220081,2.18,231.66,231.6,5.98875271]
[1734029220284,2.18,231.66,231.61,4.67042752]
[1734029220479,2.18,231.66,231.6,5.98875271]
[1734029220682,2.18,231.66,231.61,4.65616359]
[1734029220880,2.1575,231.64,231.6,5.98875271]
[1734029221080,2.1575,231.64,231.61,4.65616383]
[1734029221274,2.18,231.66,231.62,4.65668797]
[1734029221484,5.1897177,231.71,231.61,23.95501085]
[1734029221682,2.18,231.7,231.62,47.23745243]
[1734029221878,2.18,231.7,231.63,6.81416579]
[1734029222082,2.18,231.7,231.63,8.14635271]
[1734029222277,2.18,231.7,231.63,5.98875271]
[1734029222982,2.1571,231.68,231.63,8.14635271]
[1734029223177,2.18,231.7,231.64,4.65702326]
[1734029223489,2.18,231.7,231.65,47.24429824]
[1734029223681,2.18,231.7,231.66,4.6578741]
[1734029223884,2.18,231.7,231.66,5.98875271]
[1734029224284,2.1571,231.69,231.65,5.98875271]
[1734029224586,2.18,231.7,231.64,23.95501085]
[1734029224784,2.18,231.7,231.64,5.98875271]
[1734029225184,2.18,231.7,231.63,23.95501085]
[1734029225679,5.06850744,231.71,231.64,47.25461697]
[1734029225880,71.26418016,231.76,231.67,23.95501085]
[1734029226183,71.26418016,231.76,231.69,23.95501085]
[1734029226388,73.42068016,231.76,231.7,49.41815412]
[1734029226586,71.26418016,231.76,231.7,71.86503256]
[1734029226780,71.26418016,231.76,231.71,47.25075191]
[1734029226982,71.26418016,231.76,231.71,71.86503256]
[1734029227480,2.1565,231.75,231.71,71.86503256]
[1734029227681,2.18,231.79,231.72,123.10565174]
[1734029227982,2.18,231.78,231.74,23.95501085]
[1734029228182,2.18,231.79,231.74,74.02163256]
[1734029228482,7.46613446,231.8,231.75,47.24302502]
[1734029228687,7.46613446,231.8,231.76,47.22599861]
[1734029228883,9.62213446,231.8,231.76,23.95501085]
[1734029229083,9.62213446,231.8,231.75,23.95501085]
[1734029229485,2.18,231.8,231.75,23.95501085]
[1734029229688,5.16343495,231.86,231.77,11.8122395]
[1734029229985,1.3752,231.91,231.77,11.8122395]
[1734029229986,2.18,231.88,231.79,23.95501085]
[1734029230177,2.18,231.88,231.82,2.1558]
[1734029230585,2.18,231.88,231.82,8.14455271]
[1734029230786,4.3353,231.88,231.82,8.14455271]
[1734029230980,4.3353,231.88,231.83,5.98875271]
[1734029231179,2.18,231.88,231.83,5.98875271]
[1734029231483,2.18,231.87,231.8,2.1559]
[1734029231990,2.18,231.87,231.76,28.13491085]
[1734029232182,11.8122395,231.86,231.76,4.1799]
[1734029234487,2.1559,231.82,231.76,4.1799]
[1734029234688,4.3359,231.82,231.76,4.1799]
[1734029234889,4.3359,231.82,231.76,1.4395]
[1734029235090,2.156,231.81,231.76,1.4395]
[1734029235590,2.18,231.82,231.76,1.4395]
[1734029236185,2.18,231.82,231.77,2.1563]
[1734029236688,2.18,231.82,231.78,2.1562]
[1734029236888,2.18,231.82,231.76,1.4395]
[1734029237087,2.18,231.82,231.77,4.63676789]
[1734029237287,2.18,231.82,231.76,7.42825271]
[1734029237592,2.18,231.82,231.77,10.62700827]
[1734029237792,2.18,231.82,231.77,5.98875271]
[1734029237982,2.18,231.82,231.76,25.39451085]
[1734029238187,2.18,231.82,231.77,4.63690653]
[1734029238489,4.3358,231.82,231.77,5.98875271]
[1734029238691,4.3358,231.82,231.78,4.6387711]
[1734029238890,2.18,231.82,231.78,2.1562]
[1734029239290,2.18,231.82,231.79,4.64116178]
[1734029239486,2.18,231.87,231.79,5.98875271]
[1734029239688,2.18,231.87,231.83,71.46094848]
[1734029240082,2.1555,231.86,231.83,71.46094848]
[1734029240983,2.18,231.87,231.83,71.46094848]
[1734029241188,2.18,231.88,231.83,71.46094848]
[1734029241890,2.18,231.88,231.79,5.95507904]
[1734029242087,2.18,231.88,231.8,4.63908855]
[1734029242394,2.18,231.88,231.79,5.95507904]
[1734029242687,11.8122395,231.86,231.76,7.39457904]
[1734029242894,11.8122395,231.86,231.76,1.4395]
[1734029243389,2.1557,231.83,231.77,2.1563]
[1734029243587,4.3357,231.83,231.77,2.1563]
[1734029243893,2.18,231.87,231.81,2.1558]
[1734029244187,2.18,231.87,231.79,11.8122395]
[1734029244394,4.3354,231.87,231.82,2.1557]
[1734029245294,2.1555,231.86,231.82,2.1557]
[1734029250595,2.1555,231.86,231.79,17.76731854]
[1734029250897,2.18,231.93,231.82,17.76731854]
[1734029251094,2.18,231.93,231.83,7.25101192]
[1734029251300,2.155,231.91,231.85,11.8122395]
[1734029251794,2.18,231.93,231.87,23.82031616]
[1734029251995,2.18,231.93,231.87,5.95507904]
[1734029252298,2.18,231.93,231.84,23.82031616]
[1734029252491,2.18,231.93,231.84,5.95507904]
[1734029252694,2.1555,231.87,231.84,5.95507904]
[1734029252992,2.1555,231.87,231.83,5.95507904]
[1734029253297,2.1555,231.87,231.83,23.82031616]
[1734029253691,2.18,231.88,231.83,23.82031616]
[1734029253902,4.3353,231.88,231.83,23.82031616]
[1734029254093,4.3353,231.88,231.83,25.97601616]
[1734029254289,2.18,231.88,231.85,71.46094848]
[1734029254492,4.335,231.91,231.86,121.55462444]
[1734029254690,4.335,231.91,231.87,121.55044693]
[1734029254894,4.335,231.91,231.87,71.46094848]
[1734029255296,2.155,231.91,231.87,71.46094848]
[1734029256601,2.18,231.92,231.88,121.56807057]
[1734029256900,2.18,231.92,231.88,71.46094848]
[1734029257298,2.1548,231.93,231.88,71.46094848]
[1734029257502,2.1548,231.93,231.89,121.56783127]
[1734029257800,2.1548,231.93,231.89,71.46094848]
[1734029258104,7.38061112,231.94,231.89,142.96740876]
[1734029258406,2.18,231.93,231.88,71.46094848]
[1734029258702,2.18,231.93,231.88,142.96740876]
[1734029259603,2.155,231.91,231.88,142.96740876]
[1734029260597,2.18,231.93,231.88,142.96740876]
[1734029261205,2.18,231.93,231.87,262.48532782]
[1734029261404,2.155,231.91,231.88,229.74534203]
[1734029261600,2.155,231.91,231.88,262.48532782]
[1734029261800,2.155,231.91,231.88,411.60732678]
[1734029262204,2.155,231.91,231.88,262.48532782]
[1734029262610,2.155,231.91,231.88,411.60732678]
[1734029263305,2.155,231.91,231.87,411.60732678]
[1734029263513,2.155,231.91,231.88,395.05138507]
[1734029263705,2.18,231.93,231.87,411.60732678]
[1734029264105,5.20061112,231.94,231.87,411.60732678]
[1734029264306,7.38061112,231.94,231.89,262.48532782]
[1734029264507,5.20061112,231.94,231.89,262.48532782]
[1734029264704,2.1549,231.93,231.89,262.48532782]
[1734029264907,5.20061112,231.94,231.89,262.48532782]
[1734029265210,5.20061112,231.94,231.88,262.48532782]
[1734029266013,5.20061112,231.94,231.89,395.08093959]
[1734029266313,5.20061112,231.94,231.89,262.48532782]
[1734029267713,2.1548,231.93,231.89,262.48532782]
[1734029268713,2.1548,231.93,231.89,142.96740876]
[1734029273019,2.1549,231.92,231.89,142.96740876]
[1734029274512,2.155,231.91,231.89,142.96740876]
[1734029275513,2.155,231.91,231.89,71.46094848]
[1734029276318,2.155,231.91,231.9,121.81011149]
[1734029276711,2.1551,231.9,231.89,71.46094848]
[1734029276918,7.38061112,231.94,231.87,262.48532782]
[1734029277316,7.38061112,231.94,231.87,142.96740876]
[1734029277723,7.38061112,231.94,231.86,142.96740876]
[1734029278623,2.1551,231.9,231.87,230.00569265]
[1734029278825,2.1551,231.9,231.87,142.96740876]
[1734029279418,2.1552,231.89,231.87,142.96740876]
[1734029279816,11.8122395,231.93,231.86,142.96740876]
[1734029280029,2.155,231.91,231.86,142.96740876]
[1734029280235,11.8122395,231.93,231.86,142.96740876]
[1734029281128,11.8122395,231.93,231.87,230.02720245]
[1734029281333,2.1553,231.89,231.87,142.96740876]
[1734029281527,11.8122395,231.93,231.86,142.96740876]
[1734029281828,2.1553,231.88,231.85,142.96740876]
[1734029282929,2.18,231.89,231.85,142.96740876]
[1734029283129,2.18,231.89,231.82,17.86523712]
[1734029283432,7.54973575,231.84,231.79,143.21764876]
[1734029283621,9.70573575,231.8,231.79,6.20531904]
[1734029283822,11.88573575,231.8,231.79,0.25024]
[1734029284624,11.88573575,231.8,231.74,23.82031616]
[1734029284625,9.72973575,231.8,231.74,17.86523712]
[1734029284835,2.1565,231.75,231.74,17.86523712]
[1734029285131,2.18,231.75,231.7,3.4799]
[1734029285929,2.1568,231.72,231.67,2.1572]
[1734029286134,11.79998317,231.73,231.64,1.3153]
[1734029286631,2.18,231.75,231.64,1.3153]
[1734029286632,3.91973616,231.72,231.64,1.3153]
[1734029286934,3.91973616,231.71,231.64,1.3153]
[1734029287534,2.18,231.7,231.64,1.3153]
[1734029287834,6.09740945,231.7,231.64,1.3153]
[1734029288032,2.1572,231.67,231.62,2.1577]
[1734029288334,3.91740945,231.66,231.62,2.1577]
[1734029288536,3.91740945,231.65,231.61,1.4293]
[1734029288737,3.91740945,231.64,231.61,1.4293]
[1734029288940,2.18,231.7,231.61,1.4293]
[1734029289136,3.91354511,231.69,231.61,1.4293]
[1734029289338,3.91354511,231.68,231.61,1.4293]
[1734029289541,3.91354511,231.67,231.61,1.4293]
[1734029289729,2.18,231.7,231.61,1.4293]
[1734029289730,3.91354511,231.66,231.61,1.4293]
[1734029289935,3.91354511,231.65,231.63,2.1576]
[1734029290237,2.1571,231.69,231.61,1.4293]
[1734029291135,3.91027585,231.68,231.61,1.4293]
[1734029291337,2.18,231.67,231.61,1.4293]
[1734029293039,3.90728961,231.66,231.61,1.4293]
[1734029293337,2.1574,231.65,231.61,1.4293]
[1734029294442,2.1573,231.66,231.61,3.5871]
[1734029295732,4.3372,231.67,231.63,2.1576]
[1734029296135,11.79998317,231.76,231.63,11.79998317]
[1734029296336,6.05259581,231.75,231.66,11.79998317]
[1734029296532,2.18,231.74,231.66,11.79998317]
[1734029296735,2.18,231.74,231.72,2.1567]
[1734029297935,2.1562,231.79,231.69,11.79998317]
[1734029298140,2.18,231.79,231.69,11.79998317]